Cogmind - Beta 17 @@@ ROGUE MODE // 2026.08.23 @ 21:25:35 Player: IsAway Result: Destroyed by D-53 Grenadier with Mini Grenade Launcher Performance ------------- Evolutions (0) 0 Regions Visited (4) 800 Robots Destroyed (18) 90 Value Destroyed (363) 363 Prototype IDs (23) 460 Alien Tech Used (0) 0 Bonus (300) 300 TOTAL SCORE: 2013 Bonus ------- Aligned with FarCom 300 Cogmind --------- Core Integrity 0/250 Matter 211/300 Energy 160/160 System Corruption 26% Temperature Cool (0) Movement Walking (120) Location -9/Mines Parts ------- > --- POWER (1) -------- Light Nuclear Core > --- PROPULSION (2) --- Aluminum Leg (fused) > --- UTILITY (2) ------ Small Storage Unit Advanced Weight Redist. System > --- WEAPON (2) ------- Great Maul (fused) > --- INVENTORY (8) ---- Light Angular Momentum Engine Carbon-fiber Leg Light Humpback High-capacity Battery (250) System Shield Chronowheel Particle Gun Peak State ------------ > --- POWER ------------ Light Nuclear Core > --- PROPULSION ------- Aluminum Leg VSS Leg > --- UTILITY ---------- Small Storage Unit Reaction Control System > --- WEAPON ----------- Mining Laser Great Maul > --- INVENTORY -------- Light Angular Momentum Engine Aluminum Leg Carbon-fiber Leg High-capacity Battery Advanced Weight Redist. System System Shield Chronowheel Particle Gun [Rating: 18] Favorites ----------- Power Ion Engine Engine Ion Engine Power Core Light Nuclear Core Propulsion Aluminum Leg Leg Aluminum Leg Wheel Wheel Flight Unit Flight Unit Utility Small Storage Unit Device Reaction Control System Storage Small Storage Unit Hackware Hacking Suite Weapon Light Assault Rifle Energy Gun Medium Laser Ballistic Gun Light Assault Rifle Special Weapon Mining Laser Impact Weapon Great Maul Build | -11 -10 -10 -10 -9 ------- Run | Yrd Mat Min Exi Min Slots Evolved . | . . . . . Power . | . . . . . Propulsion . | . . . . . Utility . | . . . . . Weapon . | . . . . . Parts Attached 28 | 6 1 18 3 . Power 4 | 1 . 3 . . Engine 3 | 1 . 2 . . Core 1 | . . 1 . . Reactor . | . . . . . Propulsion 10 | 2 . 8 . . Treads . | . . . . . Leg 5 | . . 5 . . Wheel 2 | 2 . . . . Hover . | . . . . . Flight 3 | . . 3 . . Utility 5 | 1 . 2 2 . Device 2 | . . . 2 . Storage 2 | 1 . 1 . . Processor . | . . . . . Hackware 1 | . . 1 . . Protection . | . . . . . Artifact . | . . . . . Weapon 9 | 2 1 5 1 . Energy Gun 3 | 1 . 2 . . Energy Cannon . | . . . . . Ballistic Gun 3 | 1 . 2 . . Ballistic Cannon . | . . . . . Launcher . | . . . . . Special Weapon 2 | . 1 . 1 . Impact Weapon 1 | . . 1 . . Slashing Weapon . | . . . . . Piercing Weapon . | . . . . . Special Melee Weapon . | . . . . . Unidentified Prototypes . | . . . . . Corrupted Parts 4 | . . 4 . . System Corruption 25 | . . 25 . . Parts Lost 8 | . 2 4 . 2 Power . | . . . . . Propulsion 4 | . 1 2 . 1 Utility 1 | . . 1 . . Weapon 3 | . 1 1 . 1 Highest Loss Streak 3 | . 2 3 . 2 To Critical Strikes . | . . . . . Average Backups 7 | 2 5 7 7 7 Power 1 | . 1 1 1 1 Propulsion 1 | . 2 1 1 1 Utility 1 | . . 2 2 3 Weapon 2 | . 2 2 2 1 Tool/Special . | . . . . . Unused Backups 9 | . . 3 . 6 Power 1 | . . . . 1 Propulsion 2 | . . 1 . 1 Utility 4 | . . 1 . 3 Weapon 1 | . . 1 . . Tool/Special 1 | . . . . 1 Average Slot Usage (%) 83 | . 82 81 88 92 Engine 6 | . 14 7 . . Core 4 | . . 1 14 14 Leg 19 | . . 21 28 24 Wheel 4 | . 26 . . . Flight 1 | . . 3 . . Device 3 | . . . 13 14 Storage 14 | . 14 14 14 14 Hackware 2 | . . 4 . . Energy Gun 5 | . 14 5 . . Ballistic Gun 11 | . 7 16 . . Special Weapon 1 | . 5 . 3 10 Impact Weapon 6 | . . 5 14 14 Peak Build Rating 18 | 6 6 15 18 17 Average Rating 10 | 4 5 9 15 16 On Entrance 8 | . 6 4 13 17 Avg Prop Armor Cover (%) . | . . . . . Naked Turns . | . . . . . Heaviest Build 17 | 13 13 17 15 15 Greatest Support 31 | 20 20 22 31 31 Greatest Overweight (x) 2 | 1 1 2 . . Average Overweight (x) . | . . . . . Largest Inventory Capacity 8 | 8 8 8 8 8 Average Capacity 7 | 6 8 8 8 8 Most Carried 8 | 4 7 8 8 8 Average Carried 7 | 1 6 7 7 8 Final Capacity 8 | 8 8 8 8 8 Final Carried 8 | 4 7 8 8 8 Class Distribution -------------------- 100% | Mutant Dominant Class ---------------- Mutant | -10/Materials Mutant | -10/Mines Mutant | -10/Exiles Mutant | -9/Mines Resources | -11 -10 -10 -10 -9 ----------- Run | Yrd Mat Min Exi Min Matter Collected 482 | 253 7 222 . . Remotely . | . . . . . Salvage Created 444 | . 46 398 . . Parts 25 | . 3 22 . . Haulers Intercepted . | . . . . . Recyclers Shooed . | . . . . . Parts Field Recycled . | . . . . . Retrieved Matter . | . . . . . Parts Self-Destructed . | . . . . . Prevented . | . . . . . Parts Restored . | . . . . . Kills | -11 -10 -10 -10 -9 ------- Run | Yrd Mat Min Exi Min Combat Hostiles Destroyed 18 | . 3 15 . . Melee 5 | . . 5 . . Guns 11 | . 3 8 . . Classes Destroyed 2 | . 1 1 . . Swarmer 12 | . 3 9 . . Grunt 6 | . . 6 . . Best Kill Streak 5 | . 3 5 . . Combat Bots Only 5 | . 3 5 . . Max Kills in Single Turn 1 | . 1 1 . . Gunslinging . | . . . . . Exploded . | . . . . . Melee 1 | . . 1 . . Uniques/NPCs Destroyed . | . . . . . Combat | -11 -10 -10 -10 -9 -------- Run | Yrd Mat Min Exi Min Hostile Shots Fired 139 | . 27 106 . 6 Missed 35 | . 3 32 . . Hits 104 | . 24 74 . 6 Projectile 104 | . 24 74 . 6 AOE 6 | . . . . 6 Critical Strikes 2 | . . 2 . . Damage Taken 1113 | . 181 692 . 240 Core 262 | . 23 190 . 49 Absorbed by Shields . | . . . . . Core Remaining (%) 100 | 100 . . . . Volleys Fired 46 | . 18 28 . . Largest 2 | . 1 2 . . Hottest 100 | . 100 70 . . Shots Fired 59 | . 18 41 . . Gun 56 | . 15 41 . . Cannon . | . . . . . Launcher . | . . . . . Special 3 | . 3 . . . Kinetic 18 | . . 18 . . Thermal 41 | . 18 23 . . Explosive . | . . . . . Electromagnetic . | . . . . . Robot Hit Streak 8 | . 3 8 . . Robot Miss Streak 2 | . 2 2 . . Penetration Max . | . . . . . Secondary Targets 1 | . . 1 . . Max Gunslinging Chain 1 | . . 1 . . Shots Hit Robots 48 | . 8 40 . . Core Hits 17 | . 3 14 . . Critical Kills 1 | . . 1 . . Critical Parts Destroyed 3 | . . 3 . . Critical Strikes 5 | . 1 4 . . Burn 1 | . 1 . . . Smash 4 | . . 4 . . Melee Attacks 19 | . . 19 . . Impact 19 | . . 19 . . Slashing . | . . . . . Piercing . | . . . . . Sneak Attacks . | . . . . . Combat Hostiles . | . . . . . Follow-up Attacks . | . . . . . Damage Inflicted 946 | . 101 845 . . Guns 410 | . 101 309 . . Cannons . | . . . . . Explosions . | . . . . . Melee 536 | . . 536 . . Ramming . | . . . . . Kinetic 84 | . . 84 . . Thermal 326 | . 101 225 . . Explosive . | . . . . . Electromagnetic . | . . . . . Impact 536 | . . 536 . . Slashing . | . . . . . Piercing . | . . . . . Highest Corruption 26 | . . 26 26 26 Average Corruption 20 | . . 16 26 26 Corruption Purged . | . . . . . Corruption Blocked . | . . . . . Effects 38 | . . 22 16 . Message Errors 5 | . . 4 1 . Matter Fused 10 | . . 4 6 . Heat Flow Errors 5 | . . 3 2 . Energy Discharges 4 | . . 2 2 . Parts Fused 3 | . . 1 2 . Data Loss (minor) 4 | . . 2 2 . Data Loss (major) 2 | . . 2 . . Misfires 1 | . . 1 . . Alerts 2 | . . 1 1 . Misdirections 2 | . . 2 . . Overload Shots . | . . . . . Overflow Damage 188 | . . 188 . . Projectiles . | . . . . . Explosions . | . . . . . Melee 188 | . . 188 . . Knockbacks 1 | . . 1 . . Impact 1 | . . 1 . . Kinetic . | . . . . . Secondary . | . . . . . Self-Inflicted Damage . | . . . . . Shots . | . . . . . Rammed . | . . . . . Targets Rammed . | . . . . . Kicked . | . . . . . Crushed . | . . . . . Highest Temperature 278 | . 140 278 176 . Average Temperature 67 | . 54 71 80 . Received Heat Transfer 174 | . . 159 . 15 Siege Activations . | . . . . . Martial Activations . | . . . . . Shielding Activations . | . . . . . Robots Disrupted . | . . . . . Combat Hostiles . | . . . . . Robots Corrupted 2 | . . 2 . . Combat Hostiles 2 | . . 2 . . Parts Fried 4 | . . 4 . . Impact Corruptions 7 | . . 7 . . Robots Melted . | . . . . . Combat Hostiles . | . . . . . Parts Melted 1 | . . 1 . . Heat Transferred 965 | . 370 595 . . Parts Sabotaged . | . . . . . Parts Stolen . | . . . . . Parts Stripped . | . . . . . Power Chain Reactions . | . . . . . Alert | -11 -10 -10 -10 -9 ------- Run | Yrd Mat Min Exi Min Maximum Alert Level . | . . . . . Low Security (%) 100 | 100 100 100 . 100 Level 1 . | . . . . . Level 2 . | . . . . . Level 3 . | . . . . . Level 4 . | . . . . . Level 5 . | . . . . . High Security . | . . . . . Max Security . | . . . . . Peak Influence 152 | . 55 152 . . Initial 21 | . . 21 . . Average 42 | . 5 54 . . Influence Increases 499 | . 109 390 . . Destroy 0b10 Robot/C 360 | . 60 300 . . Destroy Leader 70 | . 10 60 . . Successful Hack 21 | . 21 . . . Destroy Structure 3 | . 3 . . . Lose Combat Pursuer 45 | . 15 30 . . Influence Decreases 499 | . 54 319 126 . Entered New Map 160 | . . 34 126 . Time Decay 279 | . 34 245 . . Lost Part 60 | . 20 40 . . Squads Dispatched 1 | . 1 . . . Investigation . | . . . . . Extermination . | . . . . . Reinforcement 1 | . 1 . . . Assault . | . . . . . Garrison . | . . . . . Intercept . | . . . . . Searches Triggered . | . . . . . Construction Impeded . | . . . . . Haulers Reinforced . | . . . . . Active Scanning Responses . | . . . . . Cargo Convoy Interrupts . | . . . . . Stealth | -11 -10 -10 -10 -9 --------- Run | Yrd Mat Min Exi Min Distress Signals . | . . . . . Communications Jammed . | . . . . . Distress Signals . | . . . . . Times Spotted 30 | . 7 18 . 5 Peak Tracking Total 5 | . 4 5 . 5 Tactical Retreats 3 | . 1 2 . . Traps | -11 -10 -10 -10 -9 ------- Run | Yrd Mat Min Exi Min Traps Triggered . | . . . . . Indirectly . | . . . . . Trap Hack Attempts . | . . . . . Triggered . | . . . . . Disarmed . | . . . . . Reprogrammed . | . . . . . Reused . | . . . . . Traps Extracted . | . . . . . Installed . | . . . . . Triggered . | . . . . . Machines | -11 -10 -10 -10 -9 ---------- Run | Yrd Mat Min Exi Min Machines Disabled . | . . . . . Max in Single Turn . | . . . . . Machines Repaired . | . . . . . Machines Dismantled . | . . . . . Machines Sabotaged . | . . . . . Overloaded Fab Kills . | . . . . . Hacking | -11 -10 -10 -10 -9 --------- Run | Yrd Mat Min Exi Min Machines Accessed 9 | . 6 2 1 . Terminals 7 | . 6 1 . . Fabricators . | . . . . . Repair Stations . | . . . . . Recycling Units . | . . . . . Scanalyzers . | . . . . . Garrison Access . | . . . . . Total Hacks 19 | . 15 3 1 . Successful 12 | . 9 2 1 . Failed 7 | . 6 1 . . Catastrophic 1 | . 1 . . . Database Lockouts . | . . . . . Manual 16 | . 13 2 1 . Terminals 17 | . 15 2 . . Fabricators . | . . . . . Repair Stations . | . . . . . Recycling Units . | . . . . . Scanalyzers . | . . . . . Garrison Access . | . . . . . Terminal Hacks 5 | . 3 1 1 . Part Schematic 1 | . 1 . . . Open Door 1 | . . 1 . . Branch Access Points 1 | . 1 . . . Terminal Index 1 | . 1 . . . Proto ID Catalog 1 | . . . 1 . Fabricator Hacks . | . . . . . Repair Station Hacks . | . . . . . Recycling Unit Hacks . | . . . . . Scanalyzer . | . . . . . Garrison Access Hacks . | . . . . . Unauthorized Hacks 7 | . 6 1 . . Terminals 7 | . 6 1 . . Botnet 4 | . 3 1 . . Skim 3 | . 3 . . . Fabricators . | . . . . . Repair Stations . | . . . . . Recycling Units . | . . . . . Scanalyzers . | . . . . . Garrison Access . | . . . . . Data Cores Recovered . | . . . . . Used . | . . . . . Hacking Detections 6 | . 5 1 . . Full Trace Events . | . . . . . Feedback Events . | . . . . . Feedback Blocked . | . . . . . Robot Schematics Acquired . | . . . . . Robots Built . | . . . . . Authchips . | . . . . . Time . | . . . . . Total Robot Build Rating . | . . . . . Part Schematics Acquired 1 | . 1 . . . Parts Built . | . . . . . Authchips . | . . . . . Time . | . . . . . Total Part Build Rating . | . . . . . Part Studies Acquired . | . . . . . Parts Repaired . | . . . . . Time . | . . . . . Parts Recycled . | . . . . . Recycled Matter . | . . . . . Retrieved Matter . | . . . . . Retrieved Components . | . . . . . Parts Scanalyzed . | . . . . . Part Schematics Acquired . | . . . . . Parts Damaged . | . . . . . Bothacking | -11 -10 -10 -10 -9 ------------ Run | Yrd Mat Min Exi Min Used RIF Installer . | . . . . . Robots Hacked . | . . . . . Non-combat . | . . . . . Combat . | . . . . . Robot Hacks Applied . | . . . . . Relay Couplers Released . | . . . . . Fabnet Peak Effective % . | . . . . . Robots Rewired . | . . . . . Allies Hacked . | . . . . . Hacks Repelled . | . . . . . Allies | -11 -10 -10 -10 -9 -------- Run | Yrd Mat Min Exi Min Total Allies . | . . . . . Largest Group . | . . . . . Highest-Rated Group . | . . . . . Highest-Rated Ally . | . . . . . Total Orders . | . . . . . Ally Attacks . | . . . . . Total Damage . | . . . . . Kills . | . . . . . Allies Corrupted . | . . . . . Allies Melted . | . . . . . Intel | -11 -10 -10 -10 -9 ------- Run | Yrd Mat Min Exi Min Active Infowar (turns) . | . . . . . Robot Analysis Total . | . . . . . Derelict Logs Recovered 1 | . . 1 . . Drone Launches . | . . . . . Drone Recoveries . | . . . . . Exploration | -11 -10 -10 -10 -9 ------------- Run | Yrd Mat Min Exi Min Turns Passed 1429 | 43 196 843 320 27 Spaces Moved 1144 | 38 184 630 268 24 Core 8 | 6 . 2 . . Treads . | . . . . . Legs 743 | . . 451 268 24 Wheels 245 | 32 184 29 . . Hover . | . . . . . Flight 148 | . . 148 . . Fastest Speed 37 | 50 80 37 105 105 Average Speed 99 | 76 80 99 116 106 Slowest Speed 200 | 100 95 200 120 120 Overloaded Moves . | . . . . . Propulsion Burnouts . | . . . . . Robots Hopped . | . . . . . Potential Cave-ins . | . . . . . Cave-ins Triggered . | . . . . . Exploration Rate (%) 45 | 4 43 98 69 12 Regions Visited 4 Branch Regions 3 Pre-discovered Areas 2 | . . 2 . . Known Exits Taken 1 | . 1 . . . Unknown Exits Taken 3 | 1 . 1 1 . Scrap Searched 1 | . . 1 . . Spaces Dug 3 | . 3 . . . Terrain Destroyed 3 | . 3 . . . Melee . | . . . . . Projectile 3 | . 3 . . . AOE . | . . . . . Terrain Rammed . | . . . . . Walls Destroyed . | . . . . . Machines Disabled . | . . . . . Actions | -11 -10 -10 -10 -9 --------- Run | Yrd Mat Min Exi Min Total 1333 | 48 206 776 278 25 Wait 52 | 1 1 49 . 1 Move 1140 | 37 183 629 267 24 Hop . | . . . . . Pick Up 21 | 4 3 11 3 . Fast Attach 16 | 6 . 10 . . Attach 8 | . . 5 3 . Detach 3 | . . 2 1 . Swap 7 | . 1 5 1 . Drop 21 | . . 18 3 . Fire 46 | . 18 28 . . Melee 19 | . . 19 . . Ram . | . . . . . Kick . | . . . . . Crush . | . . . . . Escape Stasis . | . . . . . Rewire . | . . . . . Trap . | . . . . . Miscellaneous . | . . . . . Route ------- -11/Scrapyard -10/Materials (discovered 2 exits: *Min x2) -10/Mines (discovered 4 exits: [*Mat x2] / *Exi / [*Sub]) -10/Exiles -9/Mines History --------- Turn | Location | Event 7 | -11/Scrapyard | Discovered new exit (range 16) 44 | -11/Scrapyard | Entered Materials 51 | -10/Materials | Identified exit to Mines 240 | -10/Materials | Entered Mines 326 | -10/Mines | Build established: Mutant 383 | -10/Mines | Lost 3 parts (2n1w) 428 | -10/Mines | Found a Scrap Suit stashed away for nefarious purposes 433 | -10/Mines | Found Scrap Suit 472 | -10/Mines | Discovered new exit (range 12) 478 | -10/Mines | Learned location of Storage (-9) 570 | -10/Mines | Met a Derelict who couldn't figure out how to use a Trap Extractor 761 | -10/Mines | System corruption reached 10% 808 | -10/Mines | Discovered new exit (range 7) 820 | -10/Mines | Core integrity fell below 50% 988 | -10/Mines | Core integrity fell below 20% 1058 | -10/Mines | Discovered new exit (range 5) 1078 | -10/Mines | Deemed a non-threat by the Exiles lab entrance 1078 | -10/Mines | Discovered new exit (range 5) 1083 | -10/Mines | Entered Exiles 1114 | -10/Exiles | Met 8R-AWN 1134 | -10/Exiles | Met EX-HEX 1169 | -10/Exiles | Met EX-BIN 1183 | -10/Exiles | Aligned with FarCom system 1185 | -10/Exiles | Given EX-Vault access code 1212 | -10/Exiles | Opened EX-Vault 1225 | -10/Exiles | Found Chronowheel 1248 | -10/Exiles | Warned to stay clear of 0b10 Research branches 1283 | -10/Exiles | Met EX-DEC 1393 | -10/Exiles | Discovered new exit (range 11) 1403 | -10/Exiles | Left Exiles lab with Chronowheel 1403 | -10/Exiles | Entered Mines 1404 | -9/Mines | Assembled infested the area 1409 | -9/Mines | Assisted by a Guerilla fighting off Assembled 1430 | -9/Mines | Destroyed by D-53 Grenadier with Mini Grenade Launcher Last Messages --------------- GOAL=ESCAPE Receiving FarCom transmissions... ALERT: Infestation in the mines, dispatching Demolisher response squad. A derelict emerges from the shadows: "You need to get out of here! I've been tracking a group of Assembled to figure out where they're coming from, and they're closing on this area, come on!" CH-VWL(h): "I'll hold them off! Go on ahead or try to find another way!" HV Slug penetrates Wall. C-45 Heavy ARC bursts open, deploying its payload. D-53 Grenadier unfolds itself. Mining Laser destroyed. VSS Leg destroyed. T-07 Excavator destroyed. CH-VWL(h) destroyed. The unstable cave ceiling collapses. Map ----- +----------------------------------------------------+ | ?????????????????????????????????????????????????? | | ?????????????????????????????????????????????????? | | ?????????????????????????????????????????????????? | | ?????????????????????????????????????????????????? | | ?????????????????????????????????????????????????? | | ?????????????????????????????????????????????????? | | ?????????????????????????????????????????????????? | | ?????????????????????????????????????????????????? | | ?????????????????????????????????????????????????? | | ?????????????????????????????????????????????????? | | ???????????????????????r?????????????????????????? | | ???????????????????? u ?????????????????????????? | | ??????????????????? #????????????????????????? | | ???????????????????? ###?????????????????????? | | ?????????????????#### g #?????????????????????? | | ?????????????????? g ?????????????????????? | | ??????????????????? g ?????????????????????? | | ????????????????????# #?????????????????????? | | ????????????????????# d#####?????????????????# | | ?????????????????????# d% ##??????????????? | | ??????????????????????# ##??????????????? ? | | ??????????????????????## #####?????????? ? | | ??????????????????????# % #####?????? ?? | | ??????????????????????# != ## ##???? #?? | | ???????????????""" ### # #???? #?? | | ???????????????""" @ ## #??? #?? | | ???????????????""" ######## #### #?? | | ????????????# ## #?????# #?? | | ????????????# ##???# ##?????# #?? | | ?????????????????????## #??????# ######?? | | ??????????????????????# ##??????## ##??????? | | ??????????????????????## ###????????####???????? | | ???????????????????????####??????????????????????? | | ?????????????????????????????????????????????????? | | | | | | | | | | | | | | | | | | | | | | | | | | | | | | | | | +----------------------------------------------------+ Best States ------------- Heat Dissipation 25 Energy Generation 14 Energy Capacity 250 Matter Stores 300 Matter Capacity 300 Sight Range 16 Terrain Scan Density 10 Additional Mass Support 9 Evasion (%) 63 Offensive Hacking 10 Item Schematics ----------------- Structural Scanner | -10/Materials | Hacked Robot Schematics ------------------ None Fabricated ------------ Nothing Repaired ---------- Nothing Studied --------- None Alien Tech Used ----------------- None Achievements -------------- Quantum Hacking Challenges ------------ None Game ------ Seed PhaseRestorationCloak Manual? 0 Play Time 00:25:31 Cumulative 57.0 hours Start 2026.08.23 @ 20:52:49 End 2026.08.23 @ 21:25:35 Sessions 1 Manual Loads 0 Difficulty Rogue Special Mode None Game No. 71 Rogue 71 Adventurer 0 Explorer 0 Win Type - Total 0 Types 0/0/0/0/0/0/0/0/0/0 Lore% 43 Gallery% 33 Achievement% 29 Wizard Run 0 Options --------- Layout 1 ASCII 0 Keyboard 0 Movement Mouse Keybinds 0 Fullscreen 2 Font 18/SmallcapsGlow Map View 51x43 Zoom Use 0% Tactical HUD 0 Map Filters NONE Filters NONE Steam 1 RUN: c374ff5f-8ec4-4864-b234-23f1ab711fd4